Cogmind - Beta 15 @@@ ROGUE MODE // 2025.08.10 @ 17:34:50 Player: Skysub Result: Destroyed by as-07789 with Assembled Blade Performance ------------- Evolutions (0) 0 Regions Visited (4) 800 Robots Destroyed (40) 200 Value Destroyed (900) 900 Prototype IDs (24) 480 Alien Tech Used (0) 0 Bonus (300) 300 TOTAL SCORE: 2680 Bonus ------- Aligned with FarCom 300 Cogmind --------- Core Integrity 0/250 Matter 196/300 Energy 265/265 System Corruption 2% Temperature Cool (0) Movement Treading (320) Ox2 Location -9/Mines Parts ------- > --- POWER (1) -------- Reinforced Ion Engine > --- PROPULSION (2) --- Light Treads > --- UTILITY (2) ------ High-capacity Storage Unit Structural Scanner > --- WEAPON (2) ------- Assault Rifle Grenade Launcher > --- INVENTORY (20) --- Ion Engine Wheel Flying Fortress v7 Scrap Suit Small Storage Unit High-capacity Matter Pod (200) Experimental Sensor Array Propulsion Shielding Sensor Drone Bay (20/20) Small Laser Small Laser Light Assault Rifle Grenade Launcher Maul Peak State ------------ > --- POWER ------------ Ion Engine > --- PROPULSION ------- Light Treads Wheel > --- UTILITY ---------- High-capacity Storage Unit Sensor Drone Bay > --- WEAPON ----------- Assault Rifle Assault Rifle > --- INVENTORY -------- Ion Engine Wheel Flying Fortress v7 Scrap Suit Small Storage Unit Large Storage Unit High-capacity Matter Pod Experimental Sensor Array Propulsion Shielding Small Laser Small Laser Assault Rifle Light Assault Rifle Grenade Launcher Grenade Launcher Maul [Rating: 20] Favorites ----------- Power Ion Engine Engine Ion Engine Propulsion Light Treads Treads Light Treads Wheel Wheel Utility High-capacity Storage Unit Device Structural Scanner Storage High-capacity Storage Unit Weapon Assault Rifle Energy Gun Small Laser Ballistic Gun Assault Rifle Launcher Grenade Launcher Impact Weapon Maul Build | -11 -10 -10 -10 -9 ------- Run | Yrd Mat Min Exi Min Slots Evolved . | . . . . . Power . | . . . . . Propulsion . | . . . . . Utility . | . . . . . Weapon . | . . . . . Parts Attached 26 | 7 8 7 . 4 Power 4 | 1 1 1 . 1 Engine 4 | 1 1 1 . 1 Core . | . . . . . Reactor . | . . . . . Propulsion 6 | 2 2 1 . 1 Treads 4 | 2 1 . . 1 Leg . | . . . . . Wheel 2 | . 1 1 . . Hover . | . . . . . Flight . | . . . . . Utility 7 | 2 3 1 . 1 Device 3 | 1 . 1 . 1 Storage 4 | 1 3 . . . Processor . | . . . . . Hackware . | . . . . . Protection . | . . . . . Artifact . | . . . . . Weapon 9 | 2 2 4 . 1 Energy Gun 2 | 1 1 . . . Energy Cannon . | . . . . . Ballistic Gun 4 | 1 . 3 . . Ballistic Cannon . | . . . . . Launcher 2 | . 1 1 . . Special Weapon . | . . . . . Impact Weapon 1 | . . . . 1 Slashing Weapon . | . . . . . Piercing Weapon . | . . . . . Special Melee Weapon . | . . . . . Unidentified Prototypes 1 | . . . . 1 Parts Lost 9 | . 3 3 . 3 Power 2 | . 1 1 . . Propulsion 3 | . 1 1 . 1 Utility 1 | . . 1 . . Weapon 3 | . 1 . . 2 Highest Loss Streak 2 | . 1 2 . 2 To Critical Strikes . | . . . . . Average Backups 13 | 3 9 17 16 15 Power . | . . . . . Propulsion 3 | 1 3 5 3 2 Utility 4 | . 3 5 6 6 Weapon 4 | 1 2 6 7 6 Tool/Special . | . . . . . Unused Backups 13 | . 2 . 3 8 Power 1 | . . . . 1 Propulsion 5 | . . . 3 2 Utility 5 | . 1 . . 4 Weapon 2 | . 1 . . 1 Tool/Special . | . . . . . Average Slot Usage (%) 99 | . 99 98 100 99 Engine 13 | . 14 13 14 14 Treads 19 | . 26 14 14 13 Wheel 8 | . . 13 14 14 Device 13 | . 14 13 14 14 Storage 14 | . 14 14 14 14 Energy Gun 6 | . 14 3 . . Ballistic Gun 20 | . 14 24 28 26 Peak Build Rating 20 | 7 8 10 13 20 Average Rating 9 | 5 7 9 11 13 On Entrance 7 | . 7 8 10 13 Naked Turns . | . . . . . Heaviest Build 56 | 12 49 51 50 56 Greatest Support 40 | 40 40 16 10 10 Greatest Overweight (x) 5 | 3 3 5 4 5 Average Overweight (x) 2 | . . 3 4 4 Largest Inventory Capacity 20 | 8 20 20 20 20 Average Capacity 17 | 7 15 20 20 20 Most Carried 20 | 5 15 20 19 20 Average Carried 14 | 4 9 18 18 19 Final Capacity 20 | 8 20 20 20 20 Final Carried 19 | 5 15 19 19 18 Class Distribution -------------------- 100% | Mutant Dominant Class ---------------- Mutant | -10/Materials Mutant | -10/Mines Mutant | -10/Exiles Mutant | -9/Mines Resources | -11 -10 -10 -10 -9 ----------- Run | Yrd Mat Min Exi Min Matter Collected 1153 | 317 478 150 . 208 Remotely . | . . . . . Salvage Created 1320 | 196 568 228 . 328 Parts 78 | 13 32 13 . 20 Haulers Intercepted 2 | . 2 . . . Recyclers Shooed 1 | . 1 . . . Parts Field Recycled . | . . . . . Retrieved Matter . | . . . . . Parts Self-Destructed . | . . . . . Prevented . | . . . . . Kills | -11 -10 -10 -10 -9 ------- Run | Yrd Mat Min Exi Min Combat Hostiles Destroyed 31 | . 12 7 . 12 Guns 21 | . 9 4 . 8 AOE 10 | . 3 3 . 4 Classes Destroyed 10 | 3 4 . . 3 Worker 5 | 1 2 2 . . Tunneler 4 | 4 . . . . Hauler 2 | . 2 . . . Recycler 1 | 1 . . . . Watcher 1 | . 1 . . . Swarmer 6 | . 3 3 . . Grunt 19 | . 9 4 . 6 Brawler 1 | . . . . 1 Duelist 1 | . . . . 1 Assembled 4 | . . . . 4 Best Kill Streak 5 | 5 4 4 . 4 Combat Bots Only 4 | . 4 3 . 4 Max Kills in Single Turn 4 | 1 3 4 . 2 Gunslinging 1 | . . . . 1 Exploded 3 | . 3 3 . 1 Melee . | . . . . . Uniques/NPCs Destroyed . | . . . . . Combat | -11 -10 -10 -10 -9 -------- Run | Yrd Mat Min Exi Min Hostile Shots Fired 148 | . 58 34 . 56 Missed 38 | . 13 6 . 19 Hits 110 | . 45 28 . 37 Melee 5 | . . . . 5 Projectile 105 | . 45 28 . 32 Critical Strikes 4 | . 2 . . 2 Damage Taken 1569 | . 554 362 . 653 Core 255 | . 67 84 . 104 Absorbed by Shields . | . . . . . Core Remaining (%) 100 | 100 . . . . Volleys Fired 119 | 16 57 22 . 24 Largest 2 | 2 2 2 . 2 Hottest 60 | 60 60 60 . 40 Shots Fired 233 | 32 115 44 . 42 Gun 224 | 32 114 42 . 36 Cannon . | . . . . . Launcher 9 | . 1 2 . 6 Special . | . . . . . Kinetic 142 | 16 57 33 . 36 Thermal 82 | 16 57 9 . . Explosive 9 | . 1 2 . 6 Electromagnetic . | . . . . . Robot Hit Streak 13 | 8 9 6 . 13 Robot Miss Streak 4 | 3 4 2 . 2 Penetration Max . | . . . . . Secondary Targets 3 | . 1 1 . 1 Max Gunslinging Chain 1 | . 1 1 . 1 Shots Hit Robots 154 | 19 73 31 . 31 Core Hits 83 | 7 34 15 . 27 Critical Kills . | . . . . . Critical Parts Destroyed 1 | 1 . . . . Critical Strikes 1 | 1 . . . . Destroy 1 | 1 . . . . Melee Attacks 1 | . . . . 1 Impact 1 | . . . . 1 Slashing . | . . . . . Piercing . | . . . . . Sneak Attacks . | . . . . . Combat Hostiles . | . . . . . Follow-up Attacks . | . . . . . Damage Inflicted 2554 | 247 1035 541 . 731 Guns 1754 | 247 842 305 . 360 Cannons . | . . . . . Explosions 800 | . 193 236 . 371 Melee . | . . . . . Ramming . | . . . . . Kinetic 1171 | 156 433 222 . 360 Thermal 583 | 91 409 83 . . Explosive 800 | . 193 236 . 371 Electromagnetic . | . . . . . Impact . | . . . . . Slashing . | . . . . . Piercing . | . . . . . Highest Corruption 2 | . 2 2 2 2 Average Corruption 2 | . 2 2 2 2 Corruption Purged . | . . . . . Corruption Blocked . | . . . . . Effects 34 | . 14 11 4 5 Message Errors 10 | . 4 3 1 2 Matter Fused 4 | . 3 1 . . Heat Flow Errors 5 | . . 3 1 1 Energy Discharges 6 | . 2 1 1 2 Data Loss (minor) 3 | . 2 . 1 . Data Loss (major) 2 | . 2 . . . Misfires 3 | . 1 2 . . Weapon Failures 1 | . . 1 . . Overload Shots . | . . . . . Overflow Damage 8 | . . 8 . . Projectiles . | . . . . . Explosions 8 | . . 8 . . Melee . | . . . . . Knockbacks . | . . . . . Impact . | . . . . . Kinetic . | . . . . . Secondary . | . . . . . Self-Inflicted Damage 38 | . 6 25 . 7 Shots 3 | . 1 1 . 1 Rammed . | . . . . . Targets Rammed . | . . . . . Kicked . | . . . . . Crushed . | . . . . . Highest Temperature 230 | . 60 230 82 136 Average Temperature 35 | . 27 50 42 42 Received Heat Transfer 610 | . 315 177 . 118 Siege Activations . | . . . . . Martial Activations . | . . . . . Shielding Activations . | . . . . . Robots Disrupted . | . . . . . Combat Hostiles . | . . . . . Robots Corrupted . | . . . . . Combat Hostiles . | . . . . . Parts Fried . | . . . . . Impact Corruptions . | . . . . . Robots Melted . | . . . . . Combat Hostiles . | . . . . . Parts Melted 1 | . 1 . . . Heat Transferred 1325 | 200 925 200 . . Parts Sabotaged . | . . . . . Parts Stolen . | . . . . . Parts Stripped . | . . . . . Power Chain Reactions . | . . . . . Alert | -11 -10 -10 -10 -9 ------- Run | Yrd Mat Min Exi Min Maximum Alert Level . | . . . . . Low Security (%) 100 | 100 100 100 . 100 Level 1 . | . . . . . Level 2 . | . . . . . Level 3 . | . . . . . Level 4 . | . . . . . Level 5 . | . . . . . High Security . | . . . . . Max Security . | . . . . . Peak Influence 171 | 15 171 85 . 83 Initial 33 | . . 33 . . Average 35 | 1 53 18 . 30 Influence Increases 845 | 30 405 193 . 217 Destroy 0b10 Robot/C 540 | . 240 140 . 160 Destroy 0b10 Robot/NC 65 | 30 25 10 . . Destroy Leader 126 | . 66 30 . 30 Successful Hack 3 | . 3 . . . Select Force Hacks 60 | . 60 . . . Destroy Structure 51 | . 11 13 . 27 Influence Decreases 845 | 30 319 242 37 217 Entered New Map 90 | . . 53 37 . Time Decay 659 | 30 299 169 . 161 Lost Part 54 | . 20 20 . 14 Lost Ally 42 | . . . . 42 Squads Dispatched 5 | . 5 . . . Investigation 2 | . 2 . . . Extermination . | . . . . . Reinforcement 3 | . 3 . . . Assault . | . . . . . Garrison . | . . . . . Intercept . | . . . . . Searches Triggered . | . . . . . Construction Impeded . | . . . . . Haulers Reinforced . | . . . . . Active Scanning Responses . | . . . . . Cargo Convoy Interrupts . | . . . . . Stealth | -11 -10 -10 -10 -9 --------- Run | Yrd Mat Min Exi Min Distress Signals 2 | . 2 . . . Communications Jammed . | . . . . . Distress Signals . | . . . . . Times Spotted 60 | . 28 7 . 25 Peak Tracking Total 15 | . 5 3 . 15 Tactical Retreats 1 | . . . . 1 Traps | -11 -10 -10 -10 -9 ------- Run | Yrd Mat Min Exi Min Traps Triggered 1 | . 1 . . . Indirectly . | . . . . . Trap Hack Attempts . | . . . . . Triggered . | . . . . . Disarmed . | . . . . . Reprogrammed . | . . . . . Reused . | . . . . . Traps Extracted . | . . . . . Installed . | . . . . . Triggered . | . . . . . Machines | -11 -10 -10 -10 -9 ---------- Run | Yrd Mat Min Exi Min Machines Disabled . | . . . . . Max in Single Turn . | . . . . . Machines Repaired . | . . . . . Machines Dismantled . | . . . . . Machines Sabotaged . | . . . . . Overloaded Fab Kills . | . . . . . Hacking | -11 -10 -10 -10 -9 --------- Run | Yrd Mat Min Exi Min Machines Accessed 7 | . 5 . 1 1 Terminals 3 | . 3 . . . Fabricators . | . . . . . Repair Stations . | . . . . . Recycling Units 2 | . 2 . . . Scanalyzers . | . . . . . Garrison Access . | . . . . . Total Hacks 19 | . 17 . 1 1 Successful 11 | . 9 . 1 1 Failed 8 | . 8 . . . Catastrophic . | . . . . . Database Lockouts . | . . . . . Manual 14 | . 13 . 1 . Terminals 12 | . 12 . . . Fabricators . | . . . . . Repair Stations . | . . . . . Recycling Units 5 | . 5 . . . Scanalyzers . | . . . . . Garrison Access . | . . . . . Terminal Hacks 3 | . 1 . 1 1 Open Door 1 | . . . . 1 Locate Traps 1 | . 1 . . . Proto ID Catalog 1 | . . . 1 . Fabricator Hacks . | . . . . . Repair Station Hacks . | . . . . . Recycling Unit Hacks 2 | . 2 . . . Report Inventory 2 | . 2 . . . Scanalyzer . | . . . . . Garrison Access Hacks . | . . . . . Unauthorized Hacks 6 | . 6 . . . Terminals 4 | . 4 . . . Botnet 1 | . 1 . . . Skim 3 | . 3 . . . Fabricators . | . . . . . Repair Stations . | . . . . . Recycling Units 2 | . 2 . . . Tunnel 2 | . 2 . . . Scanalyzers . | . . . . . Garrison Access . | . . . . . Data Cores Recovered . | . . . . . Used . | . . . . . Hacking Detections 3 | . 3 . . . Full Trace Events . | . . . . . Feedback Events . | . . . . . Feedback Blocked . | . . . . . Robot Schematics Acquired . | . . . . . Robots Built . | . . . . . Authchips . | . . . . . Time . | . . . . . Total Robot Build Rating . | . . . . . Part Schematics Acquired . | . . . . . Parts Built . | . . . . . Authchips . | . . . . . Time . | . . . . . Total Part Build Rating . | . . . . . Parts Repaired . | . . . . . Time . | . . . . . Parts Recycled . | . . . . . Recycled Matter . | . . . . . Retrieved Matter . | . . . . . Retrieved Components . | . . . . . Parts Scanalyzed . | . . . . . Part Schematics Acquired . | . . . . . Parts Damaged . | . . . . . Bothacking | -11 -10 -10 -10 -9 ------------ Run | Yrd Mat Min Exi Min Used RIF Installer . | . . . . . Robots Hacked . | . . . . . Non-combat . | . . . . . Combat . | . . . . . Robot Hacks Applied . | . . . . . Relay Couplers Released . | . . . . . Fabnet Peak Effective % . | . . . . . Robots Rewired . | . . . . . Allies Hacked . | . . . . . Hacks Repelled . | . . . . . Allies | -11 -10 -10 -10 -9 -------- Run | Yrd Mat Min Exi Min Total Allies 5 | . . 2 . 3 Largest Group 3 | . . 2 2 3 Highest-Rated Group 45 | . . 45 45 40 Highest-Rated Ally 31 | . . 31 31 16 Total Orders . | . . . . . Ally Attacks 30 | . . . . 30 Total Damage 309 | . . . . 309 Kills 3 | . . . . 3 Allies Corrupted . | . . . . . Allies Melted . | . . . . . Intel | -11 -10 -10 -10 -9 ------- Run | Yrd Mat Min Exi Min Active Infowar (turns) 2804 | 24 1205 748 304 523 Structural 1521 | . . 694 304 523 Seismic 1283 | 24 1205 54 . . Robot Analysis Total . | . . . . . Derelict Logs Recovered 3 | . . 2 . 1 Drone Launches . | . . . . . Drone Recoveries . | . . . . . Exploration | -11 -10 -10 -10 -9 ------------- Run | Yrd Mat Min Exi Min Turns Passed 3024 | 211 1207 777 304 525 Spaces Moved 1684 | 95 633 485 216 255 Core 13 | 13 . . . . Treads 662 | 82 580 . . . Legs . | . . . . . Wheels 1009 | . 53 485 216 255 Hover . | . . . . . Flight . | . . . . . Fastest Speed 50 | 50 145 130 140 140 Average Speed 149 | 156 158 142 140 144 Slowest Speed 240 | 200 240 155 140 155 Overloaded Moves . | . . . . . Propulsion Burnouts . | . . . . . Robots Hopped . | . . . . . Potential Cave-ins . | . . . . . Cave-ins Triggered . | . . . . . Exploration Rate (%) 61 | 7 99 92 59 51 Regions Visited 4 Branch Regions 3 Pre-discovered Areas 2 | . 2 . . . Known Exits Taken . | . . . . . Unknown Exits Taken 4 | 1 1 1 1 . Scrap Searched 3 | . . 3 . . Spaces Dug 1 | . . . . 1 Terrain Destroyed 55 | . 8 16 . 31 Melee 1 | . . . . 1 Projectile . | . . . . . AOE 54 | . 8 16 . 30 Terrain Rammed . | . . . . . Walls Destroyed . | . . . . . Machines Disabled . | . . . . . Actions | -11 -10 -10 -10 -9 --------- Run | Yrd Mat Min Exi Min Total 1951 | 122 718 526 220 365 Wait 80 | . 4 8 . 68 Move 1680 | 94 632 484 215 255 Hop . | . . . . . Pick Up 25 | 5 13 3 1 3 Fast Attach 8 | 7 . 1 . . Attach 8 | . 3 2 . 3 Detach . | . . . . . Swap 22 | . 7 6 . 9 Drop 8 | . 2 . 4 2 Fire 119 | 16 57 22 . 24 Melee 1 | . . . . 1 Ram . | . . . . . Kick . | . . . . . Crush . | . . . . . Escape Stasis . | . . . . . Rewire . | . . . . . Trap . | . . . . . Miscellaneous . | . . . . . Route ------- -11/Scrapyard -10/Materials (discovered 5 exits: [*Mat x3] / [*Min] / [*Sub]) -10/Mines (discovered 2 exits: [*Mat] / *Exi) -10/Exiles -9/Mines History --------- Turn | Location | Event 29 | -11/Scrapyard | Discovered new exit (range 15) 212 | -11/Scrapyard | Entered Materials 319 | -10/Materials | Build established: Mutant 426 | -10/Materials | Discovered new exit (range 15) 682 | -10/Materials | Discovered new exit (range 14) 808 | -10/Materials | Discovered new exit (range 9) 880 | -10/Materials | Discovered new exit (range 7) 1093 | -10/Materials | Discovered new exit (range 7) 1419 | -10/Materials | Entered Mines 1578 | -10/Mines | Found a Scrap Suit stashed away for nefarious purposes 1581 | -10/Mines | Found Scrap Suit 1643 | -10/Mines | Found a damaged Exp. Sensor Array with a note attached 1646 | -10/Mines | Found Prototype Device 1909 | -10/Mines | Discovered new exit (range 6) 1995 | -10/Mines | Deemed a non-threat by the Exiles lab entrance 1995 | -10/Mines | Discovered new exit (range 6) 2050 | -10/Mines | Core integrity fell below 50% 2196 | -10/Mines | Entered Exiles 2196 | -10/Exiles | Accompanied by 2 allies 2226 | -10/Exiles | Led the pair of lost Derelicts to a safe place 2229 | -10/Exiles | Met 8R-AWN 2255 | -10/Exiles | Met EX-HEX 2299 | -10/Exiles | Met EX-BIN 2314 | -10/Exiles | Aligned with FarCom system 2315 | -10/Exiles | Given EX-Vault access code 2350 | -10/Exiles | Opened EX-Vault 2359 | -10/Exiles | Found Flying Fortress v7 2387 | -10/Exiles | Warned to stay clear of 0b10 Research branches 2436 | -10/Exiles | Met EX-DEC 2488 | -10/Exiles | Discovered new exit (range 10) 2500 | -10/Exiles | Left Exiles lab with Flying Fortress v7 2500 | -10/Exiles | Entered Mines 2539 | -9/Mines | Learned Materials emergency access door positions 2620 | -9/Mines | Found the Drone Emporium 2626 | -9/Mines | Found Prototype Device 2626 | -9/Mines | Identified Sensor Drone Bay 2953 | -9/Mines | Assembled infested the area 2991 | -9/Mines | Assisted by bots powering up and referring to "LRC-V3" 3017 | -9/Mines | Core integrity fell below 20% 3025 | -9/Mines | Destroyed by as-07789 with Assembled Blade Last Messages --------------- 02953_ ALERT: Infestation in the mines, dispatching Demolisher response squad. 02991_ Trooper 2a: "Hello LRC-V3. What is your command?" 02991_ Mercenary 2a: "Hello LRC-V3. What is your command?" 02991_ Trooper 2b: "Hello LRC-V3. What is your command?" 02996_ as-99951 destroyed. 02996_ as-39578 destroyed. 02996_ as-61127 destroyed. 02999_ Destroyed Unknown Special Weapon. 02999_ as-89022 destroyed. 03008_ as-10099 destroyed. 03012_ Trooper 2a destroyed. 03015_ Destroyed Asb. Hover Unit. 03016_ as-87592 destroyed. 03016_ as-19867 destroyed. 03017_ Trooper 2b destroyed. 03020_ Assault Rifle destroyed. 03024_ Mercenary 2a destroyed. 03025_ as-84098 destroyed. 03025_ Wheel destroyed. Map ----- +----------------------------------------------------+ | ???????????????????###??#### # | | ????????????????????????### # | | ???????????????????????### ?? | | ???????????????????????### ##?? | | ???????????????????????## ##### | | ???????????????????????## ##### | | ???????????????????????### ### | | ???????????????????????#### ### ## | | ????????????????????????### ### ## | | ?????????????????????????## ## | | ??????????????????????###### ##### | | ??????????????????????###### ##### | | ??????????????????????## ##??? | | ??????????????????????## ######??? | | ??????????????????????## ######??? | | ??????????????????????## ##??????? | | ????????????############ ##??????? | | ???????????############# ##??????? | | ???????????### # #### ##??????? | | ???????###### ### ##??????? | | ???????###### ! # ##??????? | | ???????## # ! = %"##??????? | | ??????### [=# ####??????? | | ??????###[%[! a #####??????? | | ??????##=%a%% ##?????????? | | ??????###@ ###?????????? | | ??????## % ! ####???????? | | ?????### ## ##???????? | | ????### ### ###???????? | | ????## #### ???????????? | | ????## #### ??????????? | | ????## #### ??????????? | | ????### ##### ?????????? | | ????### ########## ?????????? | | ?????## ? ????????? | | ?????## ??????? ????????? | | ?????####???????## ???????? | | ?????####???????# ???????? | | ?????????????????? ?????????? | | ?????????????????? ### ??????????? | | ??????????????????#####??????????? | | ?????????????????????????????????? | | ?????????????????????????????????? | | ?????????????????????????????????? | | | | | | | | | | | | | +----------------------------------------------------+ Best States ------------- Heat Dissipation 25 Energy Generation 12 Energy Capacity 265 Matter Stores 300 Matter Capacity 300 Sight Range 16 Terrain Scan Density 10 Evasion (%) 40 Recoil Reduction 2 Item Schematics ----------------- None Robot Schematics ------------------ None Fabricated ------------ Nothing Repaired ---------- Nothing Alien Tech Used ----------------- None Achievements -------------- None Challenges ------------ None Game ------ Seed ForceAnalysisModule Manual? 0 Play Time 00:14:43 Cumulative 247.9 hours Start 2025.08.09 @ 21:21:38 End 2025.08.10 @ 17:34:50 Sessions 2 Manual Loads 0 Difficulty Rogue Special Mode None Game No. 258 Rogue 258 Adventurer 0 Explorer 0 Win Type - Total 11 Types 5/0/3/1/0/0/0/1/0/1 Lore% 75 Gallery% 71 Achievement% 66 Wizard Run 0 Options --------- Layout 1 ASCII 0 Keyboard 1 Movement Numpad Keybinds 0 Fullscreen 1 Font 32/SmallcapsGlow Map View 77x35 Zoom Use 0% Tactical HUD 1 Map Filters NONE Filters NONE Steam 1 RUN: d0d955ee-c007-4aaa-8620-93e976b7dd13